bitfinex/quotes_BTCUSD_20251012
["timestamp","ask_amount","ask_price","bid_price","bid_amount"]
[1760283639426,0.39869617,112850.0,112840.0,0.29156094]
[1760283640228,0.08250435,112850.0,112840.0,0.38445094]
[1760283640431,0.08250435,112850.0,112840.0,0.29156094]
[1760283640705,0.05076354,112850.0,112840.0,0.38445094]
[1760283641298,0.02695536,112850.0,112840.0,0.38445094]
[1760283641604,0.02695536,112850.0,112840.0,0.29156094]
[1760283641833,0.02695536,112850.0,112840.0,0.17854094]
[1760283642020,0.02695536,112850.0,112840.0,0.29156094]
[1760283643199,0.0082674,112850.0,112840.0,0.38201094]
[1760283643441,0.0082674,112860.0,112850.0,0.1772264]
[1760283643641,0.0082674,112860.0,112850.0,0.2911964]
[1760283644505,0.0082674,112860.0,112850.0,0.7517983]
[1760283644701,1e-08,112860.0,112850.0,0.7517983]
[1760283644924,0.02380818,112890.0,112880.0,0.5171793]
[1760283644925,0.04249614,112890.0,112880.0,0.5171793]
[1760283645118,0.03174081,112900.0,112880.0,0.5171793]
[1760283645119,0.04249614,112900.0,112890.0,0.51716361]
[1760283645318,0.04249614,112900.0,112890.0,0.63113361]
[1760283645544,0.04249614,112910.0,112900.0,0.17714791]
[1760283645843,0.04249614,112910.0,112900.0,0.65692791]
[1760283646033,0.14586057,112920.0,112910.0,0.17713222]
[1760283646262,0.04264604,112920.0,112910.0,0.22646222]
[1760283646983,0.02395808,112920.0,112910.0,0.22646222]
[1760283647873,0.17726644,112920.0,112900.0,0.22647791]
[1760283648103,0.17726644,112920.0,112910.0,0.17713222]
[1760283648309,0.17726644,112920.0,112910.0,0.22646222]
[1760283648832,0.0001499,112920.0,112910.0,0.22646222]
[1760283649045,0.17726644,112920.0,112910.0,0.22646222]
[1760283650331,0.17726644,112920.0,112910.0,0.17713222]
[1760283651889,0.17726644,112920.0,112900.0,0.22647791]
[1760283651890,0.17713222,112910.0,112900.0,0.22647791]
[1760283652100,0.17713222,112910.0,112890.0,0.22649361]
[1760283652325,0.17713222,112910.0,112900.0,0.17714791]
[1760283653634,0.17713222,112910.0,112890.0,0.17716361]
[1760283653896,0.17713222,112910.0,112890.0,0.22649361]
[1760283654133,0.17713222,112910.0,112900.0,0.17714791]
[1760283654792,1e-08,112920.0,112910.0,0.20728412]
[1760283655019,0.07773347,112960.0,112940.0,0.20723707]
[1760283655239,0.815128,112950.0,112930.0,0.04933]
[1760283655438,0.17707086,112950.0,112920.0,0.23529609]
[1760283655728,0.17708517,112940.0,112930.0,0.17709955]
[1760283655954,0.815128,112940.0,112930.0,0.17709955]
[1760283656795,0.815128,112940.0,112930.0,0.29106955]
[1760283657004,1.155128,112950.0,112940.0,0.17707362]
[1760283657206,0.51706949,112950.0,112940.0,0.17707362]
[1760283657382,0.34,112950.0,112940.0,0.29104362]
[1760283657605,0.34,112950.0,112940.0,0.38149362]
[1760283657780,0.00661017,112960.0,112950.0,0.17706949]
[1760283657945,0.18366399,112960.0,112950.0,0.17706949]
[1760283658145,0.52366399,112960.0,112950.0,0.17706949]
[1760283658368,0.34661017,112960.0,112950.0,0.17706949]
[1760283658776,0.52366399,112960.0,112950.0,0.17706949]
[1760283659787,0.34661017,112960.0,112950.0,0.17706949]
[1760283660011,0.34661017,112960.0,112950.0,0.28587949]
[1760283660369,0.34761017,112960.0,112950.0,0.28587949]
[1760283660576,0.52466399,112960.0,112950.0,0.28587949]
[1760283660782,0.34761017,112960.0,112950.0,0.28587949]
[1760283661184,0.00761017,112960.0,112950.0,0.38419949]
[1760283661382,0.00761017,112960.0,112950.0,0.28587949]
[1760283661749,0.00661017,112960.0,112950.0,0.28587949]
[1760283661956,0.00661017,112960.0,112950.0,0.17706949]
[1760283662234,0.00661017,112960.0,112950.0,0.28587949]
[1760283662437,0.18366399,112960.0,112950.0,0.38419949]
[1760283662585,0.18366399,112960.0,112950.0,0.28587949]
[1760283663265,0.00661017,112960.0,112950.0,0.28587949]
[1760283663832,0.00661017,112960.0,112950.0,0.38419949]
[1760283664036,0.00661017,112960.0,112950.0,0.28587949]
[1760283664597,0.00661017,112960.0,112950.0,0.17706949]
[1760283664817,0.18366399,112960.0,112940.0,0.22640241]
[1760283665065,0.17708517,112940.0,112930.0,0.04933]
[1760283665211,0.17708517,112940.0,112920.0,0.04933]
[1760283665404,0.17708517,112940.0,112920.0,0.22644436]
[1760283665615,0.17708517,112940.0,112910.0,0.33085883]
[1760283665616,0.815128,112930.0,112910.0,0.23253705]
[1760283665816,0.815128,112930.0,112910.0,0.17713222]
[1760283665817,0.17711732,112920.0,112910.0,0.17713222]
[1760283666041,0.17713222,112910.0,112890.0,0.22371333]
[1760283666246,0.17714791,112900.0,112890.0,0.22371333]
[1760283666455,0.17713222,112910.0,112890.0,0.22371333]
[1760283666879,0.17713222,112910.0,112900.0,0.17714791]
[1760283667085,1.49226022,112910.0,112890.0,0.22386118]
[1760283667400,0.17711654,112920.0,112900.0,0.38426107]
[1760283667819,0.17711654,112920.0,112900.0,0.28594107]
[1760283668190,0.17711654,112920.0,112910.0,0.17713222]
[1760283668451,0.18595589,112930.0,112910.0,0.17713222]
[1760283668657,0.17711654,112920.0,112910.0,0.22368222]
[1760283668891,0.17711654,112920.0,112910.0,0.28594222]
[1760283669098,0.17711654,112920.0,112910.0,0.22368222]
[1760283669700,0.14858142,112930.0,112910.0,0.22368222]
[1760283669900,0.14858142,112930.0,112920.0,0.17711654]
[1760283670106,0.14858142,112930.0,112910.0,0.22368222]
[1760283670107,0.17711654,112920.0,112910.0,0.22368222]
[1760283670305,0.17710085,112930.0,112920.0,0.17711654]
[1760283671339,0.17713222,112910.0,112890.0,0.23271936]
[1760283671481,0.17713222,112910.0,112900.0,0.17714791]
[1760283671979,0.17713222,112910.0,112890.0,0.23271936]
[1760283672385,0.815128,112900.0,112890.0,0.23271936]
[1760283672692,0.51714791,112900.0,112890.0,0.0001499]
[1760283672900,0.34,112900.0,112890.0,0.17731351]
[1760283673076,0.51714791,112900.0,112890.0,0.17731351]
[1760283673526,0.51714791,112900.0,112890.0,0.17831351]
[1760283673726,0.51714791,112900.0,112890.0,0.22486351]
[1760283673957,0.51714791,112900.0,112890.0,0.22386351]
[1760283674744,0.17713231,112910.0,112900.0,0.1771431]
[1760283675075,0.99226031,112910.0,112890.0,0.17731351]
[1760283675348,0.815128,112900.0,112890.0,0.17731351]
[1760283675549,0.815128,112900.0,112890.0,0.17831351]
[1760283675702,0.17714791,112900.0,112890.0,0.17831351]
[1760283675906,0.17714791,112900.0,112890.0,0.17731351]
[1760283676335,0.815128,112900.0,112890.0,0.17731351]
[1760283676588,0.17714791,112900.0,112890.0,0.17731351]
[1760283676754,0.51714791,112900.0,112890.0,0.0001499]
[1760283677136,1.33227591,112900.0,112890.0,0.0011499]
[1760283677748,0.51714791,112900.0,112890.0,0.0011499]
[1760283677973,1.33227591,112900.0,112890.0,0.0011499]
[1760283678715,1.33227591,112900.0,112890.0,0.0001499]
[1760283679873,0.51714791,112900.0,112890.0,0.0001499]
[1760283680073,1.33227591,112900.0,112890.0,0.0001499]
[1760283680648,0.51714791,112900.0,112890.0,0.0001499]
[1760283681127,1.33227591,112900.0,112890.0,0.0001499]
[1760283681666,0.51714791,112900.0,112890.0,0.0001499]
[1760283681868,1.33227591,112900.0,112890.0,0.0001499]
[1760283684689,1.33227591,112900.0,112890.0,1e-08]
[1760283684916,1.3874278,112900.0,112890.0,1e-08]
[1760283685092,1.48742779,112900.0,112890.0,1e-08]
[1760283685640,1.48842779,112900.0,112890.0,1e-08]
[1760283685758,1.48742779,112900.0,112890.0,1e-08]
[1760283686176,1.48842779,112900.0,112890.0,1e-08]
[1760283686385,1.55549675,112900.0,112890.0,1e-08]
[1760283686585,1.57652076,112900.0,112890.0,1e-08]
[1760283687190,0.74236875,112900.0,112890.0,1e-08]
[1760283687405,1.5765111,112900.0,112890.0,1e-08]
[1760283689530,0.94312798,112900.0,112890.0,1e-08]
[1760283689750,0.99527591,112900.0,112890.0,1e-08]
[1760283690201,1.33527591,112900.0,112890.0,1e-08]
[1760283690437,0.99527591,112900.0,112890.0,1e-08]
[1760283690661,1.33527591,112900.0,112890.0,1e-08]
[1760283691834,0.52014791,112900.0,112890.0,1e-08]
[1760283692041,1.33527591,112900.0,112890.0,1e-08]
[1760283693343,1.36542781,112900.0,112890.0,1e-08]
[1760283693549,1.4654278,112900.0,112890.0,1e-08]
[1760283694189,0.72509614,112900.0,112890.0,1e-08]
[1760283694360,1.54022414,112900.0,112890.0,1e-08]
[1760283694542,1.39267398,112900.0,112890.0,1e-08]
[1760283694748,1.49267397,112900.0,112890.0,1e-08]
[1760283695115,1.51767396,112900.0,112890.0,1e-08]
[1760283696164,1.47032792,112900.0,112890.0,1e-08]
[1760283696908,1.46962375,112900.0,112890.0,1e-08]
[1760283697299,0.65449575,112900.0,112890.0,1e-08]
[1760283697514,1.46962375,112900.0,112890.0,1e-08]
[1760283698130,0.65449575,112900.0,112890.0,1e-08]
[1760283698481,1.46962375,112900.0,112890.0,1e-08]
[1760283698893,1.48544947,112900.0,112890.0,1e-08]
[1760283699092,1.07032147,112900.0,112890.0,1e-08]
[1760283699315,1.3323387,112860.0,112850.0,0.00057429]
[1760283699596,0.53630001,112860.0,112850.0,0.00057429]
[1760283699801,1.35142801,112860.0,112850.0,0.00057429]
[1760283700869,0.53630001,112860.0,112850.0,0.00057429]
[1760283701070,1.4065799,112860.0,112850.0,0.00057429]
[1760283702230,0.17727353,112820.0,112810.0,0.07202362]
[1760283702454,0.99240153,112820.0,112810.0,0.07202362]
[1760283702677,0.5173364,112780.0,112770.0,0.0004]
[1760283702886,1.3324644,112780.0,112770.0,0.0004]
[1760283703345,1.33255283,112780.0,112770.0,0.0004]
[1760283703817,0.51742483,112780.0,112770.0,0.0004]
[1760283703989,1.33255283,112780.0,112770.0,0.0004]
[1760283704202,0.51742483,112780.0,112770.0,0.0004]
[1760283704433,1.36175886,112780.0,112770.0,0.0004]
[1760283705725,0.54663086,112780.0,112770.0,0.0004]
[1760283706070,1.36175886,112780.0,112770.0,0.0004]
[1760283707179,0.54663086,112780.0,112770.0,0.0004]
[1760283707325,1.36175886,112780.0,112770.0,0.0004]
[1760283708049,0.54663086,112780.0,112770.0,0.0004]
[1760283708248,1.36175886,112780.0,112770.0,0.0004]
[1760283708449,0.54663086,112780.0,112770.0,0.00499779]
[1760283708652,1.36175886,112780.0,112770.0,0.00499779]
[1760283708857,8.843e-05,112780.0,112770.0,0.11900779]
[1760283709066,0.17742483,112780.0,112770.0,0.00499779]
[1760283709403,0.17742483,112780.0,112770.0,0.42122182]
[1760283709404,8.843e-05,112780.0,112770.0,0.42122182]
[1760283709741,0.07162362,112820.0,112810.0,0.17728924]
[1760283709944,0.07162362,112820.0,112810.0,0.29144939]
[1760283710157,0.815128,112820.0,112810.0,0.29374747]
[1760283710394,0.34,112820.0,112810.0,0.29374747]
[1760283710575,0.34,112820.0,112810.0,0.17973747]
[1760283710907,0.341,112820.0,112810.0,0.17973747]
[1760283711237,0.51927353,112820.0,112810.0,0.17973747]
[1760283711445,0.342,112820.0,112810.0,0.17973747]
[1760283712643,1.33440153,112820.0,112810.0,0.17973747]
[1760283712860,1.33440153,112820.0,112810.0,0.00244823]
[1760283715117,1.38955342,112820.0,112810.0,1e-08]
[1760283715336,1.48955341,112820.0,112810.0,1e-08]
[1760283715541,1.50848227,112820.0,112810.0,1e-08]
[1760283716182,0.69335427,112820.0,112810.0,1e-08]
[1760283716382,1.50848227,112820.0,112810.0,1e-08]
[1760283716730,1.50748227,112820.0,112770.0,0.0004]
[1760283716939,0.51738359,112750.0,112740.0,0.0004]
[1760283717143,0.51738359,112750.0,112740.0,0.0009009]
[1760283718640,0.51738359,112750.0,112740.0,0.0019009]
[1760283719065,0.34,112750.0,112740.0,0.0019009]
[1760283719266,0.34,112750.0,112740.0,0.38802022]
[1760283719474,0.34,112750.0,112740.0,0.38418022]
[1760283719675,0.34,112750.0,112740.0,0.41433212]
[1760283719896,0.17735309,112770.0,112750.0,0.1773729]
[1760283720128,0.99248065,112770.0,112750.0,0.32600207]
[1760283720359,0.34,112770.0,112760.0,0.17736786]
[1760283720563,0.34,112770.0,112760.0,0.38017786]
[1760283720783,0.9924644,112780.0,112760.0,0.38904625]
[1760283720984,0.1773364,112780.0,112760.0,0.38904625]
[1760283721131,0.34,112770.0,112760.0,0.38904625]
[1760283721536,0.51735213,112770.0,112750.0,0.04889]
[1760283721734,0.51735213,112770.0,112750.0,0.22626738]
[1760283721940,0.51735213,112770.0,112750.0,0.31713738]
[1760283722352,0.17735213,112770.0,112760.0,0.11194]
[1760283722571,0.18620322,112780.0,112760.0,0.38017786]
[1760283722803,0.9924644,112780.0,112770.0,0.04889]
[1760283723051,0.1773364,112780.0,112770.0,0.20281]
[1760283723267,0.1773364,112780.0,112770.0,0.11194]
[1760283723486,0.1773364,112780.0,112770.0,0.04889]
[1760283724586,0.9924644,112780.0,112770.0,0.28929213]
[1760283724797,0.17735213,112770.0,112760.0,0.38889]
[1760283725031,0.17735213,112770.0,112750.0,0.22627315]
[1760283725457,0.17735213,112770.0,112750.0,0.38889]
[1760283725458,0.17736786,112760.0,112750.0,0.38889]
[1760283725679,0.17735213,112770.0,112750.0,0.72019359]
[1760283725887,0.17735213,112770.0,112760.0,0.04889]
[1760283726590,0.17735213,112770.0,112750.0,0.56627359]
[1760283727848,0.18620322,112780.0,112760.0,0.28930786]
[1760283728072,0.815128,112770.0,112760.0,0.28930786]
[1760283728285,0.18620322,112780.0,112760.0,0.28930786]
[1760283728507,0.17735213,112770.0,112760.0,0.28930786]
[1760283728967,0.18620322,112780.0,112760.0,0.28930786]
[1760283729222,0.29386842,112790.0,112780.0,0.1773364]
[1760283729223,0.01896083,112790.0,112780.0,0.1773364]
[1760283729449,0.17730778,112800.0,112780.0,0.3801464]
[1760283729698,0.99243296,112800.0,112790.0,0.22621068]
[1760283729914,0.19626579,112800.0,112790.0,0.22621068]
[1760283730136,0.17730496,112800.0,112790.0,0.22621068]
[1760283730583,0.22879783,112810.0,112790.0,0.28976158]
[1760283730806,0.209837,112810.0,112790.0,0.28976158]
[1760283731041,0.209837,112810.0,112790.0,0.0005009]
[1760283731042,0.17730496,112800.0,112790.0,0.0005009]
[1760283731269,1.03507634,112800.0,112790.0,0.0005009]
[1760283731501,1.38297053,112800.0,112790.0,0.0005009]
[1760283732658,1.39887094,112800.0,112790.0,0.0005009]
[1760283733672,1.35139379,112800.0,112790.0,0.0005009]
[1760283733885,1.39889235,112800.0,112790.0,0.0005009]
[1760283735121,0.58376435,112800.0,112790.0,0.0005009]
[1760283735712,1.39889235,112800.0,112790.0,0.0005009]
[1760283735885,1.35139379,112800.0,112790.0,1e-08]
[1760283736095,1.41479402,112800.0,112790.0,1e-08]
[1760283736298,1.35139379,112800.0,112790.0,1e-08]
[1760283736889,1.38154569,112800.0,112790.0,1e-08]
[1760283737398,1.38354569,112800.0,112790.0,1e-08]
[1760283738288,1.43102784,112800.0,112790.0,1e-08]
[1760283739112,1.40087594,112800.0,112790.0,0.00114946]
[1760283739241,1.43252033,112800.0,112790.0,0.00114946]
[1760283739638,0.61739233,112800.0,112790.0,0.00114946]
[1760283739860,1.43252033,112800.0,112790.0,0.00114946]
[1760283740071,1.40087594,112800.0,112790.0,0.00114946]
[1760283741163,0.58574794,112800.0,112790.0,0.00114946]
[1760283741490,1.40087594,112800.0,112790.0,0.00114946]
[1760283741675,0.58574794,112800.0,112790.0,0.00114946]
[1760283742079,1.40087594,112800.0,112790.0,0.00114946]
[1760283742281,1.41679402,112800.0,112790.0,1e-08]
[1760283742482,1.41679402,112800.0,112750.0,0.17738359]
[1760283742483,0.17737403,112760.0,112750.0,0.17738359]
[1760283742689,0.18026156,112770.0,112750.0,0.00015018]
[1760283742887,0.17737403,112760.0,112750.0,0.00015018]
[1760283743096,0.1656273,112760.0,112750.0,0.22642377]
[1760283743321,1.4807553,112760.0,112750.0,0.00015018]
[1760283743519,0.99971613,112760.0,112750.0,0.00015018]
[1760283743730,0.99971613,112760.0,112750.0,0.00115018]
[1760283744737,0.99971613,112760.0,112750.0,0.00215018]
[1760283744930,0.01896083,112760.0,112750.0,0.29147377]
[1760283745138,0.17736786,112760.0,112750.0,0.11409018]
[1760283745268,0.19632869,112760.0,112750.0,0.29147377]
[1760283745687,0.19632869,112760.0,112750.0,0.11409018]
[1760283745890,0.17736786,112760.0,112750.0,0.11409018]
[1760283746111,0.19631446,112770.0,112750.0,0.38234377]
[1760283746311,0.19631296,112770.0,112760.0,0.31712786]
[1760283746529,0.19631296,112770.0,112760.0,0.38017786]
[1760283746770,0.01896083,112770.0,112760.0,0.38017786]
[1760283747596,0.01896083,112780.0,112770.0,0.17735213]
[1760283747799,0.01896083,112780.0,112770.0,0.38016213]
[1760283748413,0.01896083,112790.0,112780.0,0.1773364]
[1760283748621,0.04274421,112800.0,112790.0,0.17732068]
[1760283748824,0.04290502,112800.0,112790.0,0.38013068]
[1760283749025,0.01912164,112800.0,112790.0,0.38013068]
[1760283749555,0.35912164,112800.0,112790.0,0.38013068]
[1760283749913,0.38290502,112800.0,112790.0,0.28941086]
[1760283750313,0.35912164,112800.0,112790.0,0.28941086]
[1760283750520,0.56020998,112800.0,112790.0,0.28941086]
[1760283751143,0.38290502,112800.0,112790.0,0.28941086]
[1760283751346,0.38290502,112800.0,112790.0,0.22636086]
[1760283751755,0.38290502,112800.0,112790.0,0.28643086]
[1760283751902,1.37532226,112810.0,112790.0,0.28643086]
[1760283752103,1.155128,112800.0,112790.0,0.28643086]
[1760283752301,0.35912164,112800.0,112790.0,0.28643086]
[1760283752504,0.34,112800.0,112790.0,0.28643086]
[1760283752790,0.34,112800.0,112790.0,0.38254086]
[1760283758832,0.01912164,112810.0,112800.0,0.17730496]
[1760283759000,0.02378338,112820.0,112810.0,0.17728924]
[1760283759188,0.51727353,112820.0,112810.0,0.28550924]
[1760283759388,0.53639517,112820.0,112810.0,0.28550924]
[1760283760334,0.35912164,112820.0,112810.0,0.38161924]
[1760283760532,0.34,112820.0,112810.0,0.38161924]
[1760283761170,0.19638897,112830.0,112810.0,0.38161924]
[1760283761366,0.17726733,112830.0,112810.0,0.38161924]
[1760283762369,0.17727353,112820.0,112810.0,0.38161924]
[1760283762668,0.17726733,112830.0,112810.0,0.38161924]
[1760283763056,0.17726733,112830.0,112820.0,0.22542353]
[1760283763284,1.49238582,112830.0,112810.0,0.04815]
[1760283763461,0.17727353,112820.0,112810.0,0.22543924]
[1760283763662,0.17727353,112820.0,112810.0,0.04815]
[1760283764054,0.17727353,112820.0,112800.0,0.22544515]
[1760283764491,0.17727353,112820.0,112800.0,0.32155515]
[1760283765340,0.02830238,112850.0,112830.0,0.17725703]
[1760283765497,0.99235506,112850.0,112830.0,0.32151703]
[1760283765707,0.815128,112850.0,112830.0,0.32151703]
[1760283765906,0.99235468,112850.0,112840.0,0.10643]
[1760283766328,1.33235468,112850.0,112840.0,0.10643]
[1760283766540,1.33285575,112850.0,112840.0,0.28367211]
[1760283766902,1.33285575,112850.0,112840.0,0.10643]
[1760283767105,1.33285575,112850.0,112840.0,0.28367211]
[1760283767548,1.33285547,112850.0,112840.0,0.28367211]
[1760283768125,0.00050107,112850.0,112840.0,0.28367211]
[1760283768328,0.00050107,112850.0,112840.0,0.37986211]
[1760283769912,0.00050107,112850.0,112840.0,0.41101401]
[1760283770279,0.00050107,112850.0,112840.0,0.41201401]
[1760283771267,0.00050107,112850.0,112840.0,1.56430815]
[1760283771448,0.00050107,112850.0,112840.0,1.90430815]
[1760283772670,0.00050107,112850.0,112840.0,0.75001401]
[1760283773096,0.00050107,112850.0,112840.0,0.75201401]
[1760283773745,0.00050107,112850.0,112840.0,1.99383767]
[1760283773945,0.00050107,112850.0,112840.0,2.11883765]
[1760283774082,0.00050107,112850.0,112840.0,0.96654351]
[1760283774275,0.00050107,112850.0,112840.0,2.11883765]
[1760283776249,0.00050107,112850.0,112840.0,2.14548582]
[1760283776899,0.24578264,112900.0,112880.0,0.17716415]
[1760283777124,0.52554479,112900.0,112890.0,0.10643]
[1760283777338,0.54455573,112900.0,112890.0,0.28359361]
[1760283777554,0.0001503,112900.0,112890.0,0.10643]
[1760283777771,0.17729821,112900.0,112890.0,0.10879112]
[1760283778002,0.0001503,112900.0,112890.0,0.38214473]
[1760283778224,0.0001503,112900.0,112890.0,0.37978361]
[1760283780353,0.0001503,112900.0,112890.0,0.40993551]
[1760283782525,0.0001503,112900.0,112890.0,0.41093551]
[1760283782743,0.0001503,112900.0,112890.0,0.41193551]
[1760283783071,0.0001503,112900.0,112890.0,0.41093551]
[1760283783939,0.0001503,112900.0,112890.0,1.56422965]
[1760283784102,0.0001503,112900.0,112890.0,1.53407775]
[1760283784505,0.0001503,112900.0,112890.0,1.56422965]
[1760283784708,0.0001503,112900.0,112890.0,0.41193551]
[1760283787946,0.0001503,112900.0,112890.0,0.20462]
[1760283788173,0.17729821,112900.0,112890.0,0.10843]
[1760283788858,0.51729821,112900.0,112890.0,0.002]
[1760283789077,0.51729821,112900.0,112890.0,0.001]
[1760283789725,0.1771793,112880.0,112870.0,0.04529]
[1760283789963,0.1771793,112880.0,112870.0,0.222485]
[1760283790594,0.1771793,112880.0,112870.0,0.04529]
[1760283790803,0.1771793,112880.0,112870.0,0.108]
[1760283791009,0.1771793,112880.0,112870.0,0.109]
[1760283791658,0.1771793,112880.0,112870.0,0.04629]
[1760283791877,1.3323073,112880.0,112870.0,0.001]
[1760283793182,0.34,112880.0,112870.0,0.11318]
[1760283793400,0.5171793,112880.0,112870.0,0.11418]
[1760283793833,0.5171793,112880.0,112870.0,0.11318]
[1760283794693,0.5171793,112880.0,112870.0,0.290375]
[1760283794972,0.34,112890.0,112870.0,0.390205]
[1760283795178,0.51716383,112890.0,112870.0,0.389205]
[1760283795396,0.51716383,112890.0,112870.0,0.390205]
[1760283796008,0.1771793,112880.0,112870.0,0.04947]
[1760283796184,0.177195,112870.0,112860.0,0.22250001]
[1760283796381,0.177195,112870.0,112860.0,0.28521001]
[1760283796811,0.1771793,112880.0,112860.0,0.28521001]
[1760283797001,0.177195,112870.0,112860.0,0.28521001]
[1760283797610,0.177195,112870.0,112860.0,0.28621001]
[1760283797802,0.815128,112870.0,112860.0,0.28621001]
[1760283798009,0.177195,112870.0,112860.0,0.28621001]
[1760283798202,0.177195,112870.0,112860.0,0.38604001]
[1760283798550,0.177195,112870.0,112860.0,0.38704001]
[1760283798995,0.177195,112870.0,112860.0,0.28721001]
[1760283799199,0.177195,112870.0,112860.0,0.04729]
[1760283799406,0.517195,112870.0,112860.0,0.002]
[1760283800491,0.517195,112870.0,112860.0,0.001]
[1760283801149,0.1772107,112860.0,112850.0,0.04947]
[1760283801370,0.1772107,112860.0,112850.0,0.2266964]
[1760283801564,0.1772107,112860.0,112850.0,0.2894064]
[1760283802389,0.1772107,112860.0,112850.0,0.2904064]
[1760283803368,0.517195,112870.0,112850.0,0.3912364]
[1760283803567,0.517195,112870.0,112850.0,0.2914064]
[1760283804048,0.34,112870.0,112860.0,0.04947]
[1760283804251,0.34,112870.0,112860.0,0.3892207]
[1760283804457,0.517195,112870.0,112860.0,0.3892207]
[1760283805096,0.20091696,112910.0,112880.0,0.1771793]
[1760283805294,0.24877153,112900.0,112890.0,0.22663361]
[1760283805474,1.33227591,112900.0,112890.0,0.28934361]
[1760283805676,0.815128,112900.0,112890.0,0.28934361]
[1760283805884,0.34,112900.0,112890.0,0.28934361]
[1760283806549,0.1834681,112910.0,112900.0,0.17714791]
[1760283806550,0.19736723,112910.0,112900.0,0.17714791]
[1760283806700,0.18657157,112910.0,112900.0,0.17714791]
[1760283807099,0.18657157,112910.0,112900.0,0.17614791]
[1760283807546,0.52557157,112910.0,112900.0,0.17614791]
[1760283807752,0.52557157,112910.0,112890.0,0.22663361]
[1760283807753,0.54464881,112910.0,112890.0,0.22663361]
[1760283807951,0.54464881,112910.0,112900.0,0.17614791]
[1760283809290,0.54464881,112910.0,112900.0,0.14614791]
[1760283810646,0.54464881,112910.0,112900.0,0.21269791]
[1760283811106,0.34843188,112910.0,112900.0,0.35466791]
[1760283813061,0.00843188,112910.0,112900.0,0.35466791]
[1760283813262,0.0001503,112910.0,112900.0,0.35466791]
[1760283813739,0.0001503,112910.0,112900.0,0.38481981]
[1760283814701,0.0001503,112910.0,112900.0,0.39410139]
[1760283815667,0.0001503,112910.0,112900.0,1.23860781]
[1760283816108,1e-08,112910.0,112900.0,1.54845591]
[1760283816250,1e-08,112910.0,112900.0,0.73410139]
[1760283816451,1e-08,112910.0,112900.0,1.6036078]
[1760283816694,1e-08,112910.0,112900.0,0.75910138]
[1760283816890,1e-08,112910.0,112900.0,1.6036078]
[1760283817101,1e-08,112910.0,112900.0,1.6461678]
[1760283818047,1e-08,112910.0,112900.0,1.74616779]
[1760283818382,1e-08,112910.0,112900.0,1.83569731]
[1760283818789,1e-08,112910.0,112900.0,2.23569731]
[1760283818989,1e-08,112910.0,112900.0,2.23469731]
[1760283819179,1e-08,112910.0,112900.0,2.13469732]
[1760283819379,1e-08,112910.0,112900.0,2.23669731]
[1760283819782,1e-08,112910.0,112900.0,2.20654541]
[1760283820034,1e-08,112910.0,112900.0,1.39219089]
[1760283820192,1e-08,112910.0,112900.0,2.13669732]
[1760283820391,1e-08,112910.0,112900.0,1.83669731]
[1760283821763,1e-08,112910.0,112900.0,0.56266137]
[1760283821966,1e-08,112910.0,112900.0,0.43766139]
[1760283824747,0.17710187,112930.0,112920.0,0.17711654]
[1760283824937,0.17710187,112930.0,112920.0,0.28682654]
[1760283825549,0.51710085,112940.0,112930.0,0.17710085]
[1760283825790,0.51710085,112940.0,112930.0,0.20816]
[1760283825993,0.51710085,112940.0,112930.0,0.10971]
[1760283826194,0.51710085,112940.0,112930.0,0.13634731]
[1760283827615,0.51710085,112940.0,112930.0,0.31344816]
[1760283827793,0.51710085,112940.0,112930.0,0.13634731]
[1760283828359,0.51710085,112940.0,112930.0,0.31344816]
[1760283828577,0.51708517,112940.0,112930.0,0.23479731]
[1760283828780,0.51708517,112940.0,112930.0,0.13634731]
[1760283829431,0.2487498,112980.0,112950.0,0.17706949]
[1760283829432,0.51724551,112970.0,112950.0,0.17706949]
[1760283829638,0.17739562,112970.0,112960.0,0.10971]
[1760283829848,0.17738826,112970.0,112950.0,0.32407949]
[1760283830058,0.17738826,112970.0,112960.0,0.17705382]
[1760283830059,0.00035011,112970.0,112960.0,0.17705382]
[1760283830262,0.00035011,112970.0,112960.0,0.26483669]
[1760283830467,0.17738826,112970.0,112960.0,0.31339669]
[1760283830887,0.00135011,112970.0,112960.0,0.25224669]
[1760283831119,0.00235011,112970.0,112960.0,0.26483669]
[1760283831323,0.17938826,112970.0,112960.0,0.13634287]
[1760283831526,0.17838826,112970.0,112960.0,0.13634287]
[1760283832027,0.00135011,112970.0,112960.0,0.41284669]
[1760283832230,0.00035011,112970.0,112960.0,1.28750501]
[1760283832442,0.00035011,112970.0,112960.0,0.44299859]
[1760283832695,0.00035011,112970.0,112960.0,1.28750501]
[1760283834045,0.17699115,113000.0,112990.0,0.17700681]
[1760283834244,0.00050026,113000.0,112990.0,0.38516681]
[1760283835385,0.17749141,113000.0,112990.0,0.38516681]
[1760283835796,0.00050026,113000.0,112990.0,0.38516681]
[1760283836226,0.0002,113020.0,113010.0,0.17697548]
[1760283836395,0.0002,113020.0,113010.0,0.38513548]
[1760283836396,0.00035002,113020.0,113010.0,0.38513548]
[1760283836982,0.00035002,113020.0,113010.0,0.41175015]
[1760283837179,0.00035002,113020.0,113010.0,0.23477467]
[1760283837384,0.00035002,113020.0,113010.0,0.41175015]
[1760283837583,0.00135002,113020.0,113010.0,0.41175015]
[1760283837856,0.00235002,113020.0,113010.0,0.41175015]
[1760283838210,0.17930985,113020.0,113010.0,0.41175015]
[1760283839024,0.17930985,113020.0,113010.0,0.13632467]
[1760283839414,0.17930985,113020.0,113010.0,0.41123015]
[1760283840484,0.17930985,113020.0,113010.0,0.13632467]
[1760283840691,0.17930985,113020.0,113010.0,0.41123015]
[1760283840905,0.00235002,113020.0,113010.0,0.41123015]
[1760283841769,0.17930985,113020.0,113010.0,0.41123015]
[1760283841993,0.17830985,113020.0,113010.0,0.41123015]
[1760283842550,0.17730985,113020.0,113010.0,0.41123015]
[1760283842773,0.17730985,113020.0,113010.0,0.13632467]
[1760283842987,1.35622123,113020.0,113010.0,0.02661467]
[1760283843188,1.38316791,113020.0,113010.0,0.02661467]
[1760283843895,1.49213481,112990.0,112980.0,0.07162362]
[1760283844078,1.01115369,112990.0,112980.0,0.07162362]
[1760283844340,0.17702248,112980.0,112970.0,0.22661812]
[1760283844540,0.17702248,112980.0,112960.0,0.29825744]
[1760283844746,0.17703815,112970.0,112960.0,0.29825744]
[1760283844960,0.17703815,112970.0,112960.0,0.29286382]
[1760283845545,0.17703815,112970.0,112960.0,0.31999253]
[1760283845775,0.17703815,112970.0,112960.0,0.02712871]
[1760283846592,0.17703815,112970.0,112960.0,0.02812871]
[1760283847130,0.17703815,112970.0,112960.0,0.02712871]
[1760283847753,0.17703815,112970.0,112960.0,0.09335871]
[1760283847942,0.51702802,112980.0,112960.0,0.41792253]
[1760283848310,0.5360469,112980.0,112970.0,0.04958]
[1760283848446,0.5360469,112980.0,112970.0,0.11581]
[1760283848646,0.35901888,112980.0,112970.0,0.29284815]